bitfinex/quotes_SOLUSD_20250226
["timestamp","ask_amount","ask_price","bid_price","bid_amount"]
[1740593930893,109.0115,134.04,133.95,14.7928]
[1740593931097,82.9,134.03,133.98,20.0]
[1740593931302,82.9,134.02,133.98,20.0]
[1740593931510,82.9,134.01,133.95,14.7928]
[1740593931901,82.9,134.01,133.98,20.0]
[1740593932899,90.3626,134.0,133.98,20.0]
[1740593933112,90.3626,134.0,133.95,14.7928]
[1740593933113,82.9,133.99,133.91,235.4784]
[1740593933996,82.9,133.99,133.94,20.0]
[1740593934192,82.9,133.98,133.94,20.0]
[1740593934394,82.9,133.98,133.91,226.8784]
[1740593934599,82.9,133.97,133.91,144.4784]
[1740593935001,7.4649,133.96,133.94,20.0]
[1740593935200,90.3649,133.96,133.94,20.0]
[1740593935731,7.4649,133.96,133.94,20.0]
[1740593935902,7.4638,133.98,133.94,20.0]
[1740593937121,7.4638,133.98,133.95,20.0]
[1740593937804,7.4638,133.98,133.94,20.0]
[1740593938506,82.9,133.99,133.94,20.0]
[1740593938707,7.4621,134.01,133.96,20.0]
[1740593940398,90.3616,134.02,133.96,27.4647]
[1740593940813,90.3616,134.02,133.97,20.0]
[1740593941102,109.0155,134.02,133.97,20.0]
[1740593941626,90.3616,134.02,133.97,20.0]
[1740593942416,90.3616,134.02,133.97,27.4643]
[1740593942814,0.063,134.04,133.97,27.4643]
[1740593943121,0.063,134.04,134.01,20.0]
[1740593943521,0.063,134.04,134.02,20.0]
[1740593943928,0.063,134.04,134.01,0.56864628]
[1740593944111,0.063,134.04,134.03,20.0]
[1740593944514,0.063,134.04,134.03,20.56864628]
[1740593944937,0.063,134.04,134.03,20.0]
[1740593945751,0.063,134.04,134.03,20.42648471]
[1740593945907,0.063,134.04,134.03,20.0]
[1740593946311,82.963,134.04,134.01,138.28]
[1740593947216,90.4234,134.04,134.01,138.28]
[1740593947538,90.4234,134.04,134.03,20.0]
[1740593947712,82.963,134.04,134.03,20.0]
[1740593948133,0.063,134.04,134.03,102.96864628]
[1740593948429,0.063,134.04,134.03,109.14734628]
[1740593948630,7.5234,134.04,134.03,20.0]
[1740593948809,0.063,134.04,134.03,20.0]
[1740593949931,0.063,134.04,134.03,28.02964628]
[1740593950314,0.063,134.09,134.04,0.56864628]
[1740593950510,0.063,134.09,134.08,20.0]
[1740593950953,0.063,134.09,134.08,20.56864628]
[1740593951929,0.063,134.09,134.08,20.0]
[1740593952839,0.063,134.09,134.08,102.96864628]
[1740593953744,0.063,134.09,134.08,102.4]
[1740593954441,0.063,134.09,134.04,82.4]
[1740593954857,0.063,134.09,134.07,20.0]
[1740593955151,0.063,134.09,134.08,20.0]
[1740593955731,0.063,134.09,134.08,118.78684628]
[1740593955929,0.063,134.09,134.08,120.35220128]
[1740593956261,0.063,134.09,134.08,28.78648471]
[1740593956432,0.063,134.09,134.08,28.92864628]
[1740593957123,0.063,134.09,134.08,28.36]
[1740593958043,0.063,134.09,134.08,8.36]
[1740593958250,0.063,134.09,134.03,90.0071]
[1740593958546,0.063,134.09,134.07,20.0]
[1740593959146,7.4582,134.08,134.04,8.34]
[1740593959647,7.4582,134.08,134.07,20.0]
[1740593960557,0.063,134.09,134.07,20.0]
[1740593963527,0.063,134.09,134.08,20.0]
[1740593964036,0.063,134.09,134.08,0.42648471]
[1740593964430,0.063,134.09,134.03,11.33848504]
[1740593964626,0.063,134.09,134.03,7.6371]
[1740593964826,0.063,134.09,134.06,20.0]
[1740593965031,0.063,134.09,134.07,0.28432314]
[1740593965231,0.063,134.09,134.08,0.14216157]
[1740593967234,0.063,134.13,134.12,6.71784628]
[1740593967439,0.063,134.13,134.12,15.05784628]
[1740593968839,0.063,134.13,134.12,399.52349514]
[1740593969357,0.063,134.13,134.12,379.87384628]
[1740593969673,0.063,134.13,134.12,372.27568471]
[1740593970850,0.063,134.13,134.12,153.07568471]
[1740593971361,0.063,134.13,134.12,138.16]
[1740593971941,0.063,134.13,134.11,20.0]
[1740593973657,0.063,134.13,134.09,8.34]
[1740593973839,0.063,134.13,134.12,20.0]
[1740593974731,82.9,134.12,134.04,152.675]
[1740593975250,82.9,134.12,134.07,20.0]
[1740593976134,18.64964886,134.11,134.07,20.0]
[1740593976333,82.9,134.1,134.04,138.14]
[1740593976754,26.1037,134.08,134.04,138.14]
[1740593976957,101.54964886,134.07,134.03,0.03]
[1740593977341,82.9,134.07,134.03,0.03]
[1740593978366,18.64964886,134.06,134.03,0.03]
[1740593979056,7.4594,134.06,134.03,0.03]
[1740593979556,7.4576,134.09,134.03,0.03]
[1740593980260,26.1017,134.09,134.03,0.03]
[1740593980561,7.4576,134.09,134.03,0.45648471]
[1740593981337,7.4576,134.09,134.04,20.0]
[1740593981837,26.1017,134.09,134.04,20.0]
[1740593982084,101.54964886,134.08,134.03,0.03]
[1740593982753,18.64964886,134.06,134.03,0.03]
[1740593983152,7.4599,134.05,134.03,0.03]
[1740593983460,82.9,134.04,134.03,0.03]
[1740593983664,7.4599,134.05,134.03,0.03]
[1740593987088,8.53844048,134.12,134.03,0.03]
[1740593987241,26.0999,134.1,134.03,0.03]
[1740593987553,18.64964886,134.09,134.03,0.03]
[1740593988246,0.28432314,134.08,134.03,0.03]
[1740593988448,18.64964886,134.06,134.03,0.03]
[1740593988662,82.9,134.05,134.03,0.03]
[1740593988868,82.9,134.04,134.03,0.03]
[1740593989047,2.28432314,134.08,134.03,0.03]
[1740593989359,18.64964886,134.06,134.03,0.0001]
[1740593990068,83.18432314,134.05,134.03,0.0001]
[1740593990370,102.833972,134.04,134.03,0.0001]
[1740593990570,105.52263357,134.04,134.03,0.0001]
[1740593991159,112.98303357,134.04,134.03,0.0001]
[1740593991554,27.940872,134.04,134.03,0.0001]
[1740593991758,30.08303357,134.04,134.03,0.0001]
[1740593992759,36.48133357,134.04,134.03,0.0001]
[1740593993073,35.48133357,134.04,134.03,0.0001]
[1740593993671,36.48133357,134.04,134.03,0.0001]
[1740593994249,0.28432314,134.02,133.97,0.03]
[1740593994578,82.9,134.01,133.97,0.03]
[1740593994745,20.07613357,133.96,133.91,0.03]
[1740593994944,19.07613357,133.94,133.9,0.03]
[1740593995454,18.64964886,133.92,133.9,0.03]
[1740593995644,82.9,133.91,133.9,0.03]
[1740593996352,109.01734886,133.91,133.9,0.03]
[1740593996670,109.01734886,133.91,133.9,0.0001]
[1740593998476,109.01734886,133.91,133.85,20.03]
[1740593998477,18.64964886,133.9,133.85,20.03]
[1740593998676,82.9,133.89,133.85,0.03]
[1740593999381,18.64964886,133.88,133.85,0.03]
[1740594000292,7.4699,133.87,133.85,0.03]
[1740594000591,90.3691,133.89,133.85,0.03]
[1740594000808,109.0411,133.89,133.85,0.03]
[1740594001088,18.64964886,133.87,133.85,0.03]
[1740594001580,82.9,133.86,133.85,0.03]
[1740594001986,82.9,133.88,133.85,0.03]
[1740594002185,82.9,133.9,133.85,20.03]
[1740594002366,90.3682,133.91,133.86,20.0]
[1740594002987,7.4682,133.91,133.87,20.0]
[1740594003782,19.06437386,133.93,133.87,20.0]
[1740594003783,7.4665,133.93,133.89,20.0]
[1740594004787,7.4649,133.96,133.9,20.0]
[1740594005485,83.29787386,134.0,133.92,20.0]
[1740594005682,7.4632,133.99,133.93,20.0]
[1740594005864,0.39787386,134.0,133.96,20.0]
[1740594006257,7.4627,134.0,133.96,20.0]
[1740594006491,7.4615,134.02,133.96,20.0]
[1740594006692,7.4615,134.02,133.97,20.0]
[1740594007499,26.1135,134.03,133.97,20.0]
[1740594007675,7.461,134.03,133.97,20.0]
[1740594008176,18.6494,134.06,133.98,0.28432314]
[1740594008377,7.4599,134.05,133.99,6.662]
[1740594008574,7.4599,134.05,134.02,20.0]
[1740594009173,7.4594,134.06,134.02,20.0]
[1740594009467,0.063,134.07,134.02,20.0]
[1740594010179,0.063,134.07,134.02,28.34]
[1740594010399,0.063,134.07,134.03,20.0]
[1740594010769,0.063,134.07,133.95,145.995]
[1740594010770,18.64964886,134.05,133.95,145.995]
[1740594011089,19.64964886,134.05,133.98,20.0]
[1740594011266,18.64964886,134.03,133.98,20.0]
[1740594011464,26.1154,134.02,133.95,145.995]
[1740594011698,7.4615,134.02,133.98,20.0]
[1740594012068,18.64964886,134.01,133.95,144.4724]
[1740594012269,18.64964886,133.99,133.91,6.6507]
[1740594012488,82.9,133.98,133.9,1.5209]
[1740594012793,82.9,133.98,133.88,8.34]
[1740594012794,82.9,133.98,133.91,20.0]
[1740594013505,26.1271,133.96,133.88,8.34]
[1740594013663,26.1271,133.96,133.91,20.0]
[1740594014063,7.4649,133.96,133.91,0.28432314]
[1740594014292,7.4649,133.96,133.94,20.0]
[1740594014605,82.9,134.01,133.96,20.0]
[1740594014892,82.9,134.01,133.95,0.28432314]
[1740594014893,7.4617,134.02,133.97,20.0]
[1740594015479,82.9,134.04,133.98,20.0]
[1740594015789,90.3606,134.04,133.98,20.0]
[1740594015973,101.54964886,134.03,133.95,1.6385]
[1740594016289,19.64964886,134.0,133.89,1.6288]
[1740594016477,82.9,133.99,133.92,20.0]
[1740594017077,82.9,133.99,133.94,20.0]
[1740594017265,91.24,134.03,133.94,20.0]
[1740594017587,26.1154,134.02,133.95,20.0]
[1740594017785,18.64964886,134.01,133.95,20.0]
[1740594018088,18.64964886,134.01,133.92,90.74]
[1740594018089,84.32648471,134.0,133.89,1.6288]
[1740594018289,18.64964886,133.98,133.89,1.6288]
[1740594018474,83.9,133.99,133.89,1.6288]
[1740594018680,83.9,133.99,133.92,20.0]
[1740594018681,82.9,133.99,133.92,20.0]
[1740594018882,82.9,133.98,133.92,20.0]
[1740594019083,82.9,134.01,133.92,20.0]
[1740594019283,82.9,134.01,133.93,0.28432314]
[1740594019671,26.1193,134.0,133.92,110.74]
[1740594019890,18.64964886,133.99,133.92,102.4]
[1740594020092,18.64964886,133.99,133.91,136.8]
[1740594020093,101.54964886,133.99,133.9,8.34]
[1740594020276,101.54964886,133.99,133.93,20.0]
[1740594020880,84.32648471,133.98,133.87,6.6418]
[1740594021097,18.64964886,133.95,133.87,6.6418]
[1740594021286,82.9,133.94,133.86,0.03]
[1740594021497,83.9,133.94,133.86,0.03]
[1740594021803,18.64964886,133.92,133.86,20.03]
[1740594022108,18.64964886,133.9,133.86,0.03]
[1740594022907,82.9,133.91,133.86,0.03]
[1740594023103,18.64964886,133.9,133.86,0.03]
[1740594023388,18.64964886,133.9,133.85,0.03]
[1740594023779,26.1408,133.89,133.85,0.03]
[1740594023968,82.9,133.88,133.85,0.03]
[1740594025992,7.4699,133.87,133.85,0.03]
[1740594031005,7.4699,133.87,133.85,20.03]
[1740594031796,7.4699,133.87,133.85,0.03]
[1740594032809,90.3695,133.88,133.85,20.03]
[1740594032996,90.3694,133.88,133.85,20.03]
[1740594033309,7.4694,133.88,133.85,0.03]
[1740594033699,7.4694,133.88,133.85,20.03]
[1740594034886,82.9,133.9,133.85,20.03]
[1740594035087,7.4688,133.89,133.85,20.03]
[1740594035287,7.4688,133.89,133.85,0.03]
[1740594035506,7.4688,133.89,133.84,19.53]
[1740594036985,18.6693,133.91,133.84,19.53]
[1740594037185,26.137,133.91,133.84,19.53]
[1740594037402,109.037,133.91,133.83,89.8717]
[1740594037696,109.037,133.91,133.86,20.0]
[1740594038298,7.4677,133.91,133.86,20.0]
[1740594038613,82.9,133.95,133.9,20.0]
[1740594038785,7.466,133.94,133.9,20.0]
[1740594039894,18.664,133.95,133.9,20.0]
[1740594040721,18.664,133.95,133.91,20.0]
[1740594043116,83.32648471,133.94,133.85,1.6477]
[1740594043319,82.9,133.93,133.85,1.6477]
[1740594043511,18.64964886,133.92,133.83,6.5278]
[1740594044115,18.64964886,133.92,133.86,20.0]
[1740594044413,26.1369,133.91,133.86,20.0]
[1740594045215,26.1369,133.91,133.83,6.5278]
[1740594045704,26.1369,133.91,133.86,20.0]
[1740594046013,101.54964886,133.9,133.81,1.5996]
[1740594046222,82.9,133.89,133.81,1.5996]
[1740594046428,26.1427,133.88,133.81,1.5996]
[1740594046911,26.1427,133.88,133.79,6.2286]
[1740594047320,26.1427,133.88,133.82,20.0]
[1740594047616,26.1427,133.88,133.79,6.2286]
[1740594047617,18.64964886,133.87,133.79,6.2286]
[1740594047933,107.92754886,133.87,133.77,139.9643]
[1740594048097,83.46864628,133.86,133.77,138.38]
[1740594048296,26.1486,133.85,133.77,138.38]
[1740594048708,18.64964886,133.84,133.77,138.38]
[1740594049106,82.9,133.83,133.75,6.3646]
[1740594049330,82.9,133.82,133.72,0.03]
[1740594049497,101.54964886,133.81,133.72,0.03]
[1740594049817,0.56864628,133.79,133.72,0.03]
[1740594049991,82.9,133.78,133.72,0.03]
[1740594050191,18.64964886,133.77,133.72,0.03]
[1740594050418,7.476,133.76,133.72,0.03]
[1740594050599,82.9,133.75,133.72,0.03]
[1740594050804,18.64964886,133.73,133.72,0.03]
[1740594051118,18.64964886,133.74,133.72,0.03]
[1740594051693,26.1661,133.76,133.72,0.03]
[1740594051694,15.796,133.76,133.72,0.03]
[1740594051914,7.8757,133.8,133.72,0.03]
[1740594052112,7.4738,133.8,133.72,20.03]
[1740594052315,15.7933,133.81,133.72,20.03]
[1740594052501,6.1197,133.84,133.74,20.0]
[1740594052702,15.7911,133.85,133.75,20.0]
[1740594052906,8.32,133.85,133.75,20.0]
[1740594053715,6.609,133.89,133.8,20.0]
[1740594053918,6.609,133.89,133.82,20.0]
[1740594054121,20.07613357,133.88,133.82,20.0]
[1740594054303,18.64964886,133.84,133.77,6.1109]
[1740594054621,18.64964886,133.84,133.8,20.0]
[1740594054998,101.54964886,133.84,133.76,20.0]
[1740594055209,0.28432314,133.83,133.78,20.0]
[1740594055605,18.64964886,133.81,133.76,20.0]
[1740594055807,82.9,133.8,133.76,20.0]
[1740594056400,90.3739,133.8,133.76,20.0]
[1740594056717,82.9,133.8,133.76,20.0]
[1740594057413,82.9,133.79,133.75,0.03]
[1740594058200,26.12194886,133.83,133.75,0.03]
[1740594058201,82.9,133.82,133.75,0.03]
[1740594058622,101.54964886,133.81,133.75,0.03]
[1740594058805,82.9,133.8,133.75,0.03]
[1740594059618,82.9,133.79,133.75,0.03]
[1740594059824,82.9,133.78,133.75,0.03]
[1740594060018,82.9,133.77,133.75,0.03]
[1740594061124,82.9,133.8,133.75,0.03]
[1740594061307,7.4718,133.84,133.75,20.03]
[1740594061498,7.4718,133.84,133.75,28.37]
[1740594061916,82.9,133.83,133.8,20.0]
[1740594062114,0.21324235,133.96,133.8,20.0]
[1740594062115,82.9,133.86,133.8,28.34]
[1740594062316,12.23696603,133.94,133.81,1.28432314]
[1740594062317,82.9,133.93,133.81,1.28432314]
[1740594062625,82.9,133.92,133.89,20.0]
[1740594063810,82.9,133.91,133.89,20.0]
[1740594064532,0.063,133.95,133.9,20.0]
[1740594064712,0.063,133.95,133.91,0.28432314]
[1740594064908,0.063,133.95,133.9,102.4]
[1740594065109,0.063,133.95,133.91,0.28432314]
[1740594065307,0.063,133.95,133.93,0.28432314]
[1740594065511,0.063,133.95,133.94,7.05734628]
[1740594065726,0.063,133.95,133.94,6.77302314]
[1740594066200,0.063,133.95,133.94,6.4887]
[1740594067639,0.063,133.95,133.9,8.60432314]
[1740594067843,0.063,133.95,133.9,8.32]
[1740594068356,0.063,133.95,133.93,20.0]
[1740594069225,0.063,133.95,133.9,8.32]
[1740594069430,0.063,133.95,133.93,20.0]
[1740594070732,82.963,133.95,133.89,6.3565]
[1740594070936,82.963,133.95,133.86,8.32]
[1740594071915,82.963,133.95,133.89,20.0]
[1740594072539,82.963,133.95,133.9,0.28432314]
[1740594072852,0.063,133.95,133.91,8.32]
[1740594073425,0.063,133.95,133.94,20.0]
[1740594073647,0.063,133.95,133.94,20.28432314]
[1740594074623,82.9,134.0,133.96,0.28432314]
[1740594074847,82.963,134.04,134.0,20.0]
[1740594075234,0.063,134.04,134.0,20.0]
[1740594075547,0.063,134.04,134.03,20.0]
[1740594075934,0.063,134.04,134.0,20.0]
[1740594076138,0.063,134.04,133.98,0.28432314]
[1740594076139,0.063,134.04,134.01,20.0]
[1740594076535,80.99422577,134.05,134.01,20.0]
[1740594076736,88.45432577,134.05,134.01,20.0]
[1740594076971,80.99422577,134.05,134.01,20.0]
[1740594077836,80.99422577,134.05,134.02,20.0]
[1740594078247,80.99422577,134.05,134.01,20.0]
[1740594078849,88.45442577,134.05,134.01,20.0]
[1740594079634,80.99422577,134.05,134.01,20.0]
[1740594080035,88.45412577,134.05,134.01,20.0]
[1740594080250,107.10382577,134.05,133.97,6.2915]
[1740594080441,107.10382577,134.05,133.99,0.03]
[1740594080638,99.64387463,134.04,133.99,0.03]
[1740594080861,26.1135,134.03,133.99,0.03]
[1740594081050,99.64387463,134.02,133.99,0.03]
[1740594081249,80.99422577,134.01,133.99,0.03]
[1740594081936,80.99422577,134.0,133.99,0.03]
[1740594083834,81.05722577,134.04,133.99,0.03]
[1740594084049,81.05722577,134.04,133.99,20.03]
[1740594084250,7.461,134.03,133.99,20.03]
[1740594084636,80.99422577,134.02,133.99,0.03]
[1740594084833,80.99422577,134.01,133.99,0.03]
[1740594085037,7.4626,134.0,133.99,0.03]
[1740594087751,26.1193,134.0,133.92,138.36]
[1740594088150,26.1193,134.0,133.95,20.0]
[1740594088356,18.933972,133.99,133.89,14.894]
[1740594088553,0.14216157,133.98,133.89,6.574]
[1740594088757,0.28432314,133.97,133.87,1.51]
[1740594088957,0.28432314,133.97,133.86,8.32]
[1740594089146,26.1271,133.96,133.86,8.32]
[1740594089346,18.64964886,133.95,133.85,6.4894]
[1740594089863,18.64964886,133.95,133.88,20.0]
[1740594090061,26.1271,133.96,133.88,20.0]
[1740594090454,7.4649,133.96,133.88,20.0]
[1740594090651,7.4649,133.96,133.88,28.32]
[1740594091059,8.32,133.98,133.88,28.32]
[1740594091368,7.4632,133.99,133.89,0.56864628]
[1740594091554,7.4632,133.99,133.92,20.0]
[1740594091874,82.9,133.97,133.92,20.0]
[1740594092061,82.9,133.97,133.88,15.7893]
[1740594092062,82.9,133.97,133.9,20.0]
[1740594092456,82.9,133.97,133.91,0.42648471]
[1740594092655,82.9,133.97,133.9,102.4]
[1740594092851,82.9,133.96,133.9,20.0]
[1740594093057,82.9,133.95,133.9,20.0]
[1740594093769,82.9,133.94,133.88,0.03]
[1740594094264,82.9,133.94,133.89,20.0]
[1740594094464,82.9,133.94,133.9,20.0]
[1740594094667,82.9,133.94,133.91,0.42648471]
[1740594094865,82.9,133.94,133.93,20.0]
[1740594095055,7.4632,133.99,133.94,20.0]
[1740594095257,82.9,133.98,133.94,20.0]
[1740594096060,82.9,133.98,133.94,26.39]
[1740594096575,82.9,133.97,133.94,26.39]
[1740594097570,82.9,133.97,133.94,20.0]
[1740594097969,82.9,133.96,133.94,20.0]
[1740594098172,82.9,133.95,133.91,8.32]
[1740594098352,82.9,133.94,133.89,138.32]
[1740594098854,82.9,133.94,133.92,20.0]
[1740594099183,90.3665,133.93,133.89,138.32]
[1740594099472,82.9,133.92,133.9,20.0]
[1740594099677,82.9,133.91,133.9,20.0]
[1740594099864,82.9,133.91,133.88,0.03]
[1740594100280,82.9,133.9,133.88,0.03]
[1740594101657,90.3682,133.9,133.88,0.03]
[1740594101859,82.9,133.9,133.88,0.03]
[1740594102560,90.3685,133.9,133.88,0.03]
[1740594102754,82.9,133.89,133.85,0.03]
[1740594102967,82.9,133.88,133.85,0.03]
[1740594103172,7.4699,133.87,133.85,0.03]
[1740594103477,82.9,133.86,133.85,0.03]
[1740594103776,7.4699,133.87,133.85,0.03]
[1740594104077,7.4699,133.87,133.85,0.0001]
[1740594105573,7.4693,133.88,133.85,0.0001]
[1740594105765,7.469,133.89,133.85,0.0001]
[1740594105970,13.47295669,133.89,133.85,0.0001]
[1740594106884,7.469,133.89,133.85,0.0001]
[1740594107258,7.4671,133.92,133.85,0.0001]
[1740594107467,7.4671,133.92,133.85,20.0001]
[1740594107982,13.41903248,133.92,133.85,0.0001]
[1740594108280,82.9,133.9,133.88,20.0]
[1740594108584,90.3665,133.93,133.88,20.0]
[1740594108765,82.9,133.93,133.88,20.0]
[1740594109168,82.9,133.93,133.9,20.0]
[1740594109360,90.3666,133.93,133.9,20.0]
[1740594109582,82.9,133.93,133.9,20.0]
[1740594110564,90.3667,133.93,133.9,20.0]
[1740594110764,82.9,133.93,133.9,20.0]
[1740594111184,90.3656,133.95,133.9,20.0]
[1740594111397,82.9,133.95,133.94,20.0]
[1740594111702,19.64964886,134.0,133.88,6.3173]
[1740594111904,0.28432314,133.98,133.9,20.0]
[1740594112105,82.9,133.97,133.91,20.42648471]
[1740594112262,82.9,133.96,133.92,20.0]
[1740594112991,82.9,133.95,133.88,6.3173]
[1740594113167,82.9,133.94,133.91,20.0]
[1740594113671,82.9,133.93,133.85,8.3201]
[1740594113879,82.9,133.92,133.85,8.3201]
[1740594114076,90.3677,133.91,133.85,8.3201]
[1740594114271,82.9,133.91,133.86,0.42648471]
[1740594114474,82.9,133.96,133.88,20.0]
[1740594114665,90.3654,133.95,133.88,20.0]
[1740594115090,82.9,133.94,133.89,20.0]
[1740594115295,82.9,133.94,133.93,20.0]
[1740594115498,82.9,133.98,133.93,20.0]
[1740594115693,82.9,133.97,133.93,20.0]
[1740594115918,82.9,133.97,133.95,20.0]
[1740594116600,82.9,133.99,133.98,20.0]
[1740594116805,0.063,134.04,133.99,20.0]
[1740594116806,82.9,134.02,133.99,20.0]
[1740594116985,0.063,134.04,133.99,20.0]
[1740594117291,0.063,134.04,134.0,27.07028471]
[1740594117494,0.063,134.04,134.03,20.42648471]
[1740594118004,0.063,134.04,134.03,20.0]
[1740594118993,0.063,134.04,134.0,20.0]
[1740594119190,82.9,134.03,134.0,20.0]
[1740594119474,82.9,134.02,134.0,20.0]
[1740594120086,82.9,134.01,134.0,20.0]
[1740594121297,82.9,134.0,133.95,8.3]
[1740594121492,7.4618,134.02,133.93,138.36]
[1740594121493,82.9,133.99,133.93,138.36]
[1740594121873,82.9,133.99,133.96,20.0]
[1740594122211,7.4638,133.98,133.93,138.36]
[1740594122381,82.9,133.97,133.93,138.36]
[1740594122582,82.9,133.97,133.89,8.3]
[1740594122878,82.9,133.96,133.88,6.3338]
[1740594123184,82.9,133.96,133.91,20.0]
[1740594123419,82.9,133.95,133.85,146.6001]
[1740594123576,82.9,133.94,133.85,138.3001]
[1740594124085,7.4671,133.92,133.88,20.0]
[1740594124288,82.9,133.91,133.85,0.0001]
[1740594124476,82.9,133.91,133.86,0.42648471]
[1740594124686,82.9,133.91,133.9,20.0]
[1740594124890,82.9,133.94,133.9,20.0]
[1740594125201,82.9,133.93,133.9,20.0]
[1740594125506,82.9,133.92,133.9,20.0]
[1740594125711,82.9,133.92,133.87,8.3]
[1740594125916,82.9,133.91,133.9,20.0]
[1740594126211,82.9,133.94,133.9,20.0]
[1740594126404,90.3644,133.97,133.9,20.0]
[1740594127098,18.64964886,133.96,133.9,20.0]
[1740594127308,18.64964886,133.96,133.88,20.0]
[1740594127721,90.3644,133.97,133.88,20.0]
[1740594128223,82.9,133.96,133.89,0.42648471]
[1740594128722,82.9,133.96,133.92,20.0]
[1740594129227,82.9,133.95,133.91,20.0]
[1740594129400,82.9,133.94,133.91,20.0]
[1740594129597,82.9,133.97,133.91,20.0]
[1740594129902,82.9,133.97,133.93,20.0]
[1740594130714,82.9,134.0,133.94,0.42648471]
[1740594131020,82.963,134.01,133.98,20.0]
[1740594131698,0.063,134.01,133.99,0.42648471]
[1740594131900,0.063,134.01,133.99,0.14216157]
[1740594132098,0.063,134.01,133.99,0.28432314]
[1740594132519,0.063,134.01,133.98,20.0]
[1740594132823,0.063,134.01,133.99,0.42648471]
[1740594133323,0.063,134.01,133.98,20.0]
[1740594135117,0.063,134.01,133.99,0.42648471]
[1740594135316,0.063,134.01,134.0,47.51829514]
[1740594135899,0.063,134.01,134.0,28.86864628]
[1740594136501,0.063,134.01,134.0,28.3]
[1740594137501,0.063,134.01,134.0,20.0]
[1740594137700,0.063,134.01,134.0,20.42648471]
[1740594138324,0.063,134.01,134.0,20.0]
[1740594138518,0.063,134.01,134.0,20.42648471]
[1740594138712,0.063,134.01,134.0,20.56864628]
[1740594139602,0.063,134.01,134.0,20.0]
[1740594139810,0.063,134.01,134.0,20.28432314]
[1740594140121,0.063,134.01,134.0,20.42648471]
[1740594140421,0.063,134.01,134.0,20.0]
[1740594143204,0.063,134.01,134.0,20.56864628]
[1740594143505,0.063,134.01,134.0,39.21829514]
[1740594143720,0.063,134.04,134.03,20.56864628]
[1740594143905,0.063,134.04,134.03,138.15579514]
[1740594144240,0.063,134.07,134.06,21.56864628]
[1740594144429,0.063,134.07,134.06,125.18378254]
[1740594144602,0.063,134.08,134.07,21.21829514]
[1740594145015,0.063,134.15,134.12,20.56864628]
[1740594145226,0.063,134.15,134.12,137.37429514]
[1740594145405,0.063,134.15,134.12,414.95920249]
[1740594145611,0.063,134.15,134.12,405.93829514]
[1740594145817,0.063,134.15,134.12,414.39429514]